{"text_format":"1","workbook":"xlsx","n_sheets":7,"sheets":["Diff","Debug3","Debug2","Debug","ABC_Test","Sentnece_Test","ABC_Data"],"not_rendered":{"charts":0,"images":11,"macros":1,"external_links":0,"defined_names":21,"comments":0,"pivot_tables":0},"unopened":[],"bounds":{"document_bytes":16777216,"sheet_cells":100000,"rows_first":2000,"rows_last":500,"rows_between":2000,"halvings":0,"cell_chars":16384,"cell_head_chars":4096},"cells_cut":0,"cells_raw":0,"read":"whole","date_system":"1900"}

{"sheet":"Diff","index":0,"n_rows":93,"n_cols":44,"rows_kept":93,"cut":false,"hidden":false,"merged":[[6,1,6,13],[6,14,6,26],[6,27,6,39],[63,1,75,13],[63,14,75,26],[50,1,62,13],[50,14,62,26],[37,1,49,13],[37,14,49,26],[24,1,36,13],[24,14,36,26],[23,1,23,13],[23,14,23,26],[7,1,19,13],[7,14,19,26],[20,27,20,30],[76,1,88,13],[76,14,88,26],[7,27,19,39],[89,1,101,13],[89,14,101,26],[81,29,82,35],[20,31,20,39]]}
["文書比較"]
[null,"文書Aが編集され文書Bに変更されたとします。文章がどのように編集されたかをDIFF結果に表示します。"]
[null,"表示内容: (+ 挿入された文字列) 、(- 削除された文字列)、(*変更された文字列)",null,null,null,null,null,null,null,null,null,null,null,null,null,null,null,null,null,null,null,"改行は、\\nに変換して表示します。"]
[null,null,null,null,"文言の入替を判定し、入れ替わったデータを#記号(グループ・インデックス)により表示します。"]
[null,null,null,null,"その場合、インデックスを表示するにチェックを入れてください。",null,null,null,null,null,null,null,null,null,null,null,null,null,null,null,null,null,null,null,null,null,null,null,null,null,null,null,null,null,null,null,null,null,null,null,null,null,"※文書の移動や、入れ替わりを確認したい場合は、インデックス値を表示して確認します。"]
[null,null,null,null,null,null,null,null,null,null,null,null,null,null,null,null,null,null,null,null,null,null,null,null,null,null,null,null,null,null,null,null,null,null,null,null,null,null,null,null,null,null,null,"インデックスは、文書A側の単語インデックスを表示しています。"]
[null,"文書A",null,null,null,null,null,null,null,null,null,null,null,null,"文書B",null,null,null,null,null,null,null,null,null,null,null,null,"DIFF結果"]
[null,"とある飲み物の商品広告。\n黄の酸っぱい、檸檬サワー!?\n青の梅サワーも一緒に出たよ！\n提供は、橘ビバレッジでした。",null,null,null,null,null,null,null,null,null,null,null,null,"とある飲み物の商品広告。\n青の酸っぱい、梅サワー!?\n緑の梅酒も一緒に出たよ！\n提供は、南ビバレッジでした。",null,null,null,null,null,null,null,null,null,null,null,null,"#0: とある飲み物の商品広告。\\n  #8: (*黄 → 青)  #9: の酸っぱい、  #13: (*檸檬 → 梅)  #14: サワー!?\\n  #17: (*青の梅サワー → 緑の梅酒)  #21: も一緒に出たよ！\\n提供は、  #31: (*橘 → 南)  #32: ビバレッジでした。"]
[]
[]
[]
[]
[]
[]
[]
[]
[]
[]
[]
[]
[null,"一文単位で、DIFFをとる。",null,null,null,null,null,null,null,null,null,null,null,null,null,null,null,null,null,null,null,null,null,null,null,null,null,"一致率",null,null,null,0.8771929824561403]
[]
[null,"その他のサンプルデータ"]
[null,"文書A",null,null,null,null,null,null,null,null,null,null,null,null,"文書B"]
[null,"藤田恵一監督の映画『南極猫物語』それは、極寒の南極の昭和基地を舞台にした、猫の太郎と次郎、飼い主で、明るい性格の高田健とのハラハラ・ドキドキのドタバタ劇。周りは、白銀の雪原、上空には彩やかな、オーロラの大自然のシーンは見物です。\n\n9月19日公開予定。劇場の満員御礼は確実。",null,null,null,null,null,null,null,null,null,null,null,null,"藤田恵一監督の映画『北極猫物語』それは、北極の大正基地を舞台にした、猫のナローと富士、飼い主で、明るい性格の近松元子とのハラハラ・ドキドキのドタバタ劇。周りは、白銀の雪原、上空には彩やかな、オーロラの大自然のシーンは見物です。\n\n8月13日公開予定。劇場の満員御礼は確実。\n\n※ちなみに、ナローと富士は森川家で、私が子供の頃、飼っていた犬の名前です。"]
[]
[]
[null,null,null,null,null,null,null,null,null,null,null,null,null,null,null,null,null,null,null,null,null,null,null,null,null,null,null,null,"サンプルデータは、私(開発者)が、"]
[null,null,null,null,null,null,null,null,null,null,null,null,null,null,null,null,null,null,null,null,null,null,null,null,null,null,null,null,"作成した架空のデータです。"]
[null,null,null,null,null,null,null,null,null,null,null,null,null,null,null,null,null,null,null,null,null,null,null,null,null,null,null,null,"ちょっと、聞いたこと、見たことがあるような文言も"]
[null,null,null,null,null,null,null,null,null,null,null,null,null,null,null,null,null,null,null,null,null,null,null,null,null,null,null,null,"ありますが、あなり気にしないでください。"]
[null,null,null,null,null,null,null,null,null,null,null,null,null,null,null,null,null,null,null,null,null,null,null,null,null,null,null,null,"以降の、データについても同等ですので、"]
[null,null,null,null,null,null,null,null,null,null,null,null,null,null,null,null,null,null,null,null,null,null,null,null,null,null,null,null,"ご理解頂きますよう、よろしくお願いします。"]
[]
[]
[]
[]
[null,"『日本のジェンダーを考える。』豊臣 和也著。日本の会社で、お茶くみをするのは？ときかれたら、女性と答える人が多いのでは、ないでしょうか。では、なぜ、そのようなイメージが定着しているのでしょうか？筆者は、この原因が、歴史の史実にあると、考えており、歴史上の人物、千利休を取り上げて、この理由を説明しています。",null,null,null,null,null,null,null,null,null,null,null,null,"『日本のジェンダーを考える。』豊臣 優美著。日本の会社で、お茶くみをするのは？ときかれたら、男性と答える人が多いのでは、ないでしょうか。では、なぜ、そのようなイメージが定着しているのでしょうか？筆者は、この原因が、歴史の史実にあると、考えており、歴史上の人物、千利休を取り上げて、この理由を説明しています。"]
[]
[]
[null,null,null,null,null,null,null,null,null,null,null,null,null,null,null,null,null,null,null,null,null,null,null,null,null,null,null,null,"筆者の名前を、変更しています。"]
[null,null,null,null,null,null,null,null,null,null,null,null,null,null,null,null,null,null,null,null,null,null,null,null,null,null,null,null,"性別が反対になっています。"]
[]
[]
[]
[]
[]
[]
[]
[]
[null,"私は、パソコンを、昨日、起動した。",null,null,null,null,null,null,null,null,null,null,null,null,"私は、昨日、パソコンを、起動した。"]
[]
[null,null,null,null,null,null,null,null,null,null,null,null,null,null,null,null,null,null,null,null,null,null,null,null,null,null,null,null,"※文書の前後への移動を判定して、#記号により、"]
[null,null,null,null,null,null,null,null,null,null,null,null,null,null,null,null,null,null,null,null,null,null,null,null,null,null,null,null,"移動の情報を表示します。"]
[]
[null,null,null,null,null,null,null,null,null,null,null,null,null,null,null,null,null,null,null,null,null,null,null,null,null,null,null,null,"グループ・インデックスを表示する で確認してください。"]
[]
[]
[]
[]
[]
[]
[]
[null,"ボクちん、俳句に挑戦してみました。\n\n起き抜けに 見つけたバグよ\n梅雨空に",null,null,null,null,null,null,null,null,null,null,null,null,"ボクちんも俳句に挑戦してみました。\n\n起き抜けに 見つけたバグよ\n梅雨空に"]
[]
[null,null,null,null,null,null,null,null,null,null,null,null,null,null,null,null,null,null,null,null,null,null,null,null,null,null,null,null,"起き抜けは、方言で、起きたすぐにという意味です。"]
[null,null,null,null,null,null,null,null,null,null,null,null,null,null,null,null,null,null,null,null,null,null,null,null,null,null,null,null,"朝、起きてすぐ、パソコンに向かって、プログラミングすることが、よくあるのですが…"]
[null,null,null,null,null,null,null,null,null,null,null,null,null,null,null,null,null,null,null,null,null,null,null,null,null,null,null,null,"いきなり、バグ(不具合)を見つけてしまって、憂鬱になり、すぐに修正しなければ、いけないという"]
[null,null,null,null,null,null,null,null,null,null,null,null,null,null,null,null,null,null,null,null,null,null,null,null,null,null,null,null,"義務感にかられる心情を、俳句にしてみました。"]
[]
[null,null,null,null,null,null,null,null,null,null,null,null,null,null,null,null,null,null,null,null,null,null,null,null,null,null,null,null,"『あんのリリック』というドラマの影響を受けて、俳句に挑戦してみました。"]
[null,null,null,null,null,null,null,null,null,null,null,null,null,null,null,null,null,null,null,null,null,null,null,null,null,null,null,null,"このドラマ、"]
[null,null,null,null,null,null,null,null,null,null,null,null,null,null,null,null,null,null,null,null,null,null,null,null,null,null,null,null,"主人公の、あんちゃんが、俳句にフクミを持たせて、"]
[null,null,null,null,null,null,null,null,null,null,null,null,null,null,null,null,null,null,null,null,null,null,null,null,null,null,null,null,"愛の告白をするという、何ともロマンチックな"]
[null,null,null,null,null,null,null,null,null,null,null,null,null,null,null,null,null,null,null,null,null,null,null,null,null,null,null,null,"お話しです。"]
[]
[null,"レバーとスナズリ。\n\nコケェ～、コッコッコォ！",null,null,null,null,null,null,null,null,null,null,null,null,"モモとスナズリ。\n\nコケェ～、コッコッコォ！"]
[]
[]
[null,null,null,null,null,null,null,null,null,null,null,null,null,null,null,null,null,null,null,null,null,null,null,null,null,null,null,null,null,"鳥肉の"]
[]
[null,null,null,null,null,null,null,null,null,null,null,null,null,null,null,null,null,null,null,null,null,null,null,null,null,null,null,null,null,"好きな部位だ。"]
[]
[]
[null,null,null,null,null,null,null,null,null,null,null,null,null,null,null,null,null,null,null,null,null,null,null,null,null,null,null,null,null,"鳴き声は、おまけです。"]
[]
[]
[]
[]
[null,"とある飲み物の商品広告。\n黄の酸っぱい、檸檬サワー!?\n青の梅サワーも一緒に出たよ！\n提供は、橘ビバレッジでした。",null,null,null,null,null,null,null,null,null,null,null,null,"とある飲み物の商品広告。\n青の酸っぱい、梅サワー!?\n緑の梅酒も一緒に出たよ！\n提供は、南ビバレッジでした。"]
[]
[]
[null,null,null,null,null,null,null,null,null,null,null,null,null,null,null,null,null,null,null,null,null,null,null,null,null,null,null,null,"グループ・インデックスを表示する で確認してください。"]

{"sheet":"Debug3","index":1,"n_rows":56,"n_cols":4,"rows_kept":56,"cut":false,"hidden":false,"merged":[]}
["idx","st",".idx_a","word"]
[0,"Delete",0,"素麺を"]
[1,"Same",23,"釜"]
[2,"Same",24,"や"]
[3,"Same",25,"鍋"]
[4,"Same",26,"から"]
[5,"Same",27,"湯気"]
[6,"Same",28,"が"]
[7,"Same",29,"モワモワ"]
[8,"Same",30,"と"]
[9,"Same",31,"、"]
[10,"Same",32,"立"]
[11,"Same",33,"ち"]
[12,"Same",34,"上"]
[13,"Same",35,"っています"]
[14,"Same",36,"。"]
[15,"Update",-100,"粒麺"]
[16,"Update",-100,"を"]
[17,"Same",2,"パク"]
[18,"Same",3,"っと"]
[19,"Update",-100,"二口"]
[20,"Same",5,"、"]
[21,"Same",6,"食"]
[22,"Same",7,"べると"]
[23,"Same",8,"、『"]
[24,"Update",-100,"おいしい"]
[25,"Same",10,"!"]
[26,"Same",11,"』"]
[27,"Same",12,"と"]
[28,"Same",13,"思"]
[29,"Same",14,"わず"]
[30,"Same",15,"、"]
[31,"Same",16,"口"]
[32,"Same",17,"から"]
[33,"Same",18,"声"]
[34,"Same",19,"が"]
[35,"Same",20,"出"]
[36,"Same",21,"てしまいます"]
[37,"Same",22,"。"]
[38,"Insert",-100,"\n\n"]
[39,"Same",38,"さてさて"]
[40,"Same",39,"、"]
[41,"Same",40,"そのお"]
[42,"Same",41,"味"]
[43,"Same",42,"の"]
[44,"Same",43,"方"]
[45,"Same",44,"は"]
[46,"Same",45,"、"]
[47,"Same",46,"\n"]
[48,"Same",47,"☆☆☆"]
[49,"Same",48,"\n"]
[50,"Same",49,"星"]
[51,"Same",50,"が"]
[52,"Same",51,"三"]
[53,"Same",52,"つなり"]
[54,"Same",53,"。"]

{"sheet":"Debug2","index":2,"n_rows":7,"n_cols":5,"rows_kept":7,"cut":false,"hidden":false,"merged":[]}
["種別","文書A","文書B","Group","一致文字数"]
["Same",null,"米紙ウォールストリート・ジャーナル（ＷＳＪ）が公開したウクライナ軍第９２機械化旅団のドローン映像には、先月バフムートで起きた投降の様子が捉えられている。",0,76]
["Insert",null,"\n",-1,-1]
["Same",null,"第９２旅団の攻撃ドローン部門「アキレス」を指揮するユーリー・フェドレンコ氏はＣＮＮへの声明で、投降が実際に起きたことを確認した。",32,64]
["Delete","\n\n",null,64,-2]
["Same",null,"\n\n",31,2]
["Same",null,"「自分は死ぬのだと悟ると、彼は機関銃を投げ捨てて両手を上げ、戦闘を継続しない意思を伝えた」とフェドレンコ氏。",65,54]

{"sheet":"Debug","index":3,"n_rows":97,"n_cols":11,"rows_kept":97,"cut":false,"hidden":false,"merged":[]}
["A:IDX","A:結果","A:文書BでのIDX","A:単語","A:連結Flg","A:処理済","B:IDX","B:結果","B:文書AでのIDX","B:単語","B:連結Flg"]
[0,"Same",0,"藤田恵一監督",null,false,0,"Same",0,"藤田恵一監督"]
[1,"Same",1,"の",null,false,1,"Same",1,"の"]
[2,"Same",2,"映画",null,false,2,"Same",2,"映画"]
[3,"Same",3,"『",null,false,3,"Same",3,"『"]
[4,"Unknown",-100,"南極猫物語",null,false,4,"Unknown",-100,"北極猫物語"]
[5,"Unknown",-100,"』",null,false,5,"Unknown",-100,"』"]
[6,"Same",6,"それは",null,false,6,"Same",6,"それは"]
[7,"Same",7,"、",null,false,7,"Same",7,"、"]
[8,"Unknown",-100,"極寒",null,false,8,"Unknown",-100,"北極"]
[9,"Unknown",-100,"の",null,false,9,"Unknown",-100,"の"]
[10,"Unknown",-100,"南極",null,false,10,"Unknown",-100,"大正基地"]
[11,"Unknown",-100,"の",null,false,11,"Unknown",-100,"を"]
[12,"Unknown",-100,"昭和基地",null,false,12,"Same",14,"舞台"]
[13,"Unknown",-100,"を",null,false,13,"Same",15,"にした"]
[14,"Same",12,"舞台",null,false,14,"Same",16,"、"]
[15,"Same",13,"にした",null,false,15,"Same",17,"猫"]
[16,"Same",14,"、",null,false,16,"Same",18,"の"]
[17,"Same",15,"猫",null,false,17,"Unknown",-100,"ナロー"]
[18,"Same",16,"の",null,false,18,"Unknown",-100,"と"]
[19,"Unknown",-100,"太郎",null,false,19,"Unknown",-100,"富士"]
[20,"Unknown",-100,"と",null,false,20,"Unknown",-100,"、"]
[21,"Unknown",-100,"次郎",null,false,21,"Same",23,"飼"]
[22,"Unknown",-100,"、",null,false,22,"Same",24,"い"]
[23,"Same",21,"飼",null,false,23,"Same",25,"主"]
[24,"Same",22,"い",null,false,24,"Same",26,"で"]
[25,"Same",23,"主",null,false,25,"Same",27,"、"]
[26,"Same",24,"で",null,false,26,"Same",28,"明"]
[27,"Same",25,"、",null,false,27,"Same",29,"るい"]
[28,"Same",26,"明",null,false,28,"Same",30,"性格"]
[29,"Same",27,"るい",null,false,29,"Same",31,"の"]
[30,"Same",28,"性格",null,false,30,"Unknown",-100,"近松元子"]
[31,"Same",29,"の",null,false,31,"Same",33,"との"]
[32,"Unknown",-100,"高田健",null,false,32,"Same",34,"ハラハラ"]
[33,"Same",31,"との",null,false,33,"Same",35,"・"]
[34,"Same",32,"ハラハラ",null,false,34,"Same",36,"ドキドキ"]
[35,"Same",33,"・",null,false,35,"Same",37,"の"]
[36,"Same",34,"ドキドキ",null,false,36,"Same",38,"ドタバタ"]
[37,"Same",35,"の",null,false,37,"Same",39,"劇"]
[38,"Same",36,"ドタバタ",null,false,38,"Same",40,"。"]
[39,"Same",37,"劇",null,false,39,"Same",41,"周"]
[40,"Same",38,"。",null,false,40,"Same",42,"りは"]
[41,"Same",39,"周",null,true,41,"Same",43,"、"]
[42,"Same",40,"りは",null,true,42,"Same",44,"白銀"]
[43,"Same",41,"、",null,true,43,"Same",45,"の"]
[44,"Same",42,"白銀",null,true,44,"Same",46,"雪原"]
[45,"Same",43,"の",null,true,45,"Same",47,"、"]
[46,"Same",44,"雪原",null,true,46,"Same",48,"上空"]
[47,"Same",45,"、",null,true,47,"Same",49,"には"]
[48,"Same",46,"上空",null,true,48,"Same",50,"彩"]
[49,"Same",47,"には",null,true,49,"Same",51,"やかな"]
[50,"Same",48,"彩",null,true,50,"Same",52,"、"]
[51,"Same",49,"やかな",null,true,51,"Same",53,"オーロラ"]
[52,"Same",50,"、",null,true,52,"Same",54,"の"]
[53,"Same",51,"オーロラ",null,true,53,"Same",55,"大自然"]
[54,"Same",52,"の",null,true,54,"Same",56,"の"]
[55,"Same",53,"大自然",null,true,55,"Same",57,"シーン"]
[56,"Same",54,"の",null,true,56,"Same",58,"は"]
[57,"Same",55,"シーン",null,true,57,"Same",59,"見物"]
[58,"Same",56,"は",null,true,58,"Same",60,"です"]
[59,"Same",57,"見物",null,true,59,"Same",61,"。"]
[60,"Same",58,"です",null,true,60,"Unknown",-100,"\\n\\n"]
[61,"Same",59,"。",null,true,61,"Unknown",-100,8]
[62,"Unknown",-100,"\\n\\n",null,false,62,"Unknown",-100,"月"]
[63,"Unknown",-100,9,null,false,63,"Unknown",-100,13]
[64,"Unknown",-100,"月",null,false,64,"Same",66,"日公開予定"]
[65,"Unknown",-100,19,null,false,65,"Same",67,"。"]
[66,"Same",64,"日公開予定",null,false,66,"Same",68,"劇場"]
[67,"Same",65,"。",null,false,67,"Same",69,"の"]
[68,"Same",66,"劇場",null,true,68,"Same",70,"満員御礼"]
[69,"Same",67,"の",null,true,69,"Same",71,"は"]
[70,"Same",68,"満員御礼",null,true,70,"Same",72,"確実"]
[71,"Same",69,"は",null,true,71,"Same",73,"。"]
[72,"Same",70,"確実",null,true,72,"Unknown",-100,"\\n\\n"]
[73,"Same",71,"。",null,true,73,"Unknown",-100,"※"]
[null,null,null,null,null,null,74,"Unknown",-100,"ちなみに"]
[null,null,null,null,null,null,75,"Unknown",-100,"、"]
[null,null,null,null,null,null,76,"Unknown",-100,"ナロー"]
[null,null,null,null,null,null,77,"Unknown",-100,"と"]
[null,null,null,null,null,null,78,"Unknown",-100,"富士"]
[null,null,null,null,null,null,79,"Unknown",-100,"は"]
[null,null,null,null,null,null,80,"Unknown",-100,"森川家"]
[null,null,null,null,null,null,81,"Unknown",-100,"で"]
[null,null,null,null,null,null,82,"Unknown",-100,"、"]
[null,null,null,null,null,null,83,"Unknown",-100,"私"]
[null,null,null,null,null,null,84,"Unknown",-100,"が"]
[null,null,null,null,null,null,85,"Unknown",-100,"子供"]
[null,null,null,null,null,null,86,"Unknown",-100,"の"]
[null,null,null,null,null,null,87,"Unknown",-100,"頃"]
[null,null,null,null,null,null,88,"Unknown",-100,"、"]
[null,null,null,null,null,null,89,"Unknown",-100,"飼"]
[null,null,null,null,null,null,90,"Unknown",-100,"っていた"]
[null,null,null,null,null,null,91,"Unknown",-100,"犬"]
[null,null,null,null,null,null,92,"Unknown",-100,"の"]
[null,null,null,null,null,null,93,"Unknown",-100,"名前"]
[null,null,null,null,null,null,94,"Unknown",-100,"です"]
[null,null,null,null,null,null,95,"Unknown",-100,"。"]

{"sheet":"ABC_Test","index":4,"n_rows":169,"n_cols":12,"rows_kept":169,"cut":false,"hidden":false,"merged":[[4,6,4,10],[4,11,4,15],[5,6,5,10],[5,11,5,15]]}
["文書A","文書B","DIFFの結果","DIFF(正解)","結果"]
["BとA","BとA","相違なし","相違なし",{"$f":"IF(AND(A2<>\"\",B2<>\"\",C2=D2),\"OK\",\"\")","v":"OK"}]
["BとA","CとA","#0: (*B → C)  #1: とA","#0: (*B → C)  #1: とA",{"$f":"IF(AND(A3<>\"\",B3<>\"\",C3=D3),\"OK\",\"\")","v":"OK"}]
["BとA","CとB","(+C)  #1: と  #2: (-A)  #0: B","(+C)  #1: と  #2: (-A)  #0: B","OK"]
["CとA","BとA","#0: (*C → B)  #1: とA","#0: (*C → B)  #1: とA","OK",null,"サンプル文書の数",null,null,null,null,"OKの数"]
["CとA","CとA","相違なし","相違なし","OK",null,{"$f":"COUNTA(A:A)-1","v":168},null,null,null,null,{"$f":"COUNTIFS(E:E,\"OK\")","v":168}]
["CとA","CとB","#0: Cと  #2: (*A → B)","#0: Cと  #2: (*A → B)","OK"]
["CとB","BとA","#0: (-C)  #2: B  #1: と  (+A)","#0: (-C)  #2: B  #1: と  (+A)","OK"]
["CとB","CとA","#0: Cと  #2: (*B → A)","#0: Cと  #2: (*B → A)","OK"]
["CとB","CとB","相違なし","相違なし","OK"]
["CとBとA","CとBとA","相違なし","相違なし","OK"]
["CとBとA","DとBとA","#0: (*C → D)  #1: とBとA","#0: (*C → D)  #1: とBとA","OK"]
["CとBとA","DとCとA","(+D)  #3: と  #0: Cと  #2: (-B)  #4: A","(+D)  #3: と  #0: Cと  #2: (-B)  #4: A","OK"]
["CとBとA","DとCとB","(+D)  #3: と  #4: (-A)  #0: CとB","(+D)  #3: と  #4: (-A)  #0: CとB","OK"]
["DとBとA","CとBとA","#0: (*D → C)  #1: とBとA","#0: (*D → C)  #1: とBとA","OK"]
["DとBとA","DとBとA","相違なし","相違なし","OK"]
["DとBとA","DとCとA","#0: Dと  #2: (*B → C)  #3: とA","#0: Dと  #2: (*B → C)  #3: とA","OK"]
["DとBとA","DとCとB","#0: Dと  (+C)  #3: と  #4: (-A)  #2: B","#0: Dと  (+C)  #3: と  #4: (-A)  #2: B","OK"]
["DとCとA","CとBとA","#0: (-D)  #2: Cと  (+B)  #1: と  #4: A","#0: (-D)  #2: Cと  (+B)  #1: と  #4: A","OK"]
["DとCとA","DとBとA","#0: Dと  #2: (*C → B)  #3: とA","#0: Dと  #2: (*C → B)  #3: とA","OK"]
["DとCとA","DとCとA","相違なし","相違なし","OK"]
["DとCとA","DとCとB","#0: DとCと  #4: (*A → B)","#0: DとCと  #4: (*A → B)","OK"]
["DとCとB","CとBとA","#0: (-D)  #2: CとB  #1: と  (+A)","#0: (-D)  #2: CとB  #1: と  (+A)","OK"]
["DとCとB","DとBとA","#0: Dと  #2: (-C)  #4: B  #3: と  (+A)","#0: Dと  #2: (-C)  #4: B  #3: と  (+A)","OK"]
["DとCとB","DとCとA","#0: DとCと  #4: (*B → A)","#0: DとCと  #4: (*B → A)","OK"]
["DとCとB","DとCとB","相違なし","相違なし","OK"]
["BとA","CとBとA","(+Cと)  #0: BとA","(+Cと)  #0: BとA","OK"]
["BとA","DとBとA","(+Dと)  #0: BとA","(+Dと)  #0: BとA","OK"]
["BとA","DとCとA","#0: (*B → DとC)  #1: とA","#0: (*B → DとC)  #1: とA","OK"]
["BとA","DとCとB","(+D)  #1: と  #2: (*A → Cと)  #0: B","(+D)  #1: と  #2: (*A → Cと)  #0: B","OK"]
["CとA","CとBとA","#0: Cと  (+Bと)  #2: A","#0: Cと  (+Bと)  #2: A","OK"]
["CとA","DとBとA","#0: (*C → DとB)  #1: とA","#0: (*C → DとB)  #1: とA","OK"]
["CとA","DとCとA","(+Dと)  #0: CとA","(+Dと)  #0: CとA","OK"]
["CとA","DとCとB","(+Dと)  #0: Cと  #2: (*A → B)","(+Dと)  #0: Cと  #2: (*A → B)","OK"]
["CとB","CとBとA","#0: CとB  (+とA)","#0: CとB  (+とA)","OK"]
["CとB","DとBとA","#0: (*C → D)  #1: とB  (+とA)","#0: (*C → D)  #1: とB  (+とA)","OK"]
["CとB","DとCとA","(+Dと)  #0: Cと  #2: (*B → A)","(+Dと)  #0: Cと  #2: (*B → A)","OK"]
["CとB","DとCとB","(+Dと)  #0: CとB","(+Dと)  #0: CとB","OK"]
["CとBとA","BとA","#0: (-Cと)  #2: BとA","#0: (-Cと)  #2: BとA","OK"]
["DとBとA","BとA","#0: (-Dと)  #2: BとA","#0: (-Dと)  #2: BとA","OK"]
["DとCとA","BとA","#0: (*DとC → B)  #3: とA","#0: (*DとC → B)  #3: とA","OK"]
["DとCとB","BとA","#0: (-D)  #4: B  #1: と  #2: (-Cと)  (+A)","#0: (-D)  #4: B  #1: と  #2: (-Cと)  (+A)","OK"]
["CとBとA","CとA","#0: Cと  #2: (-Bと)  #4: A","#0: Cと  #2: (-Bと)  #4: A","OK"]
["DとBとA","CとA","#0: (*DとB → C)  #3: とA","#0: (*DとB → C)  #3: とA","OK"]
["DとCとA","CとA","#0: (-Dと)  #2: CとA","#0: (-Dと)  #2: CとA","OK"]
["DとCとB","CとA","#0: (-Dと)  #2: Cと  #4: (*B → A)","#0: (-Dと)  #2: Cと  #4: (*B → A)","OK"]
["CとBとA","CとB","#0: CとB  #3: (-とA)","#0: CとB  #3: (-とA)","OK"]
["DとBとA","CとB","#0: (*D → C)  #1: とB  #3: (-とA)","#0: (*D → C)  #1: とB  #3: (-とA)","OK"]
["DとCとA","CとB","#0: (-Dと)  #2: Cと  #4: (*A → B)","#0: (-Dと)  #2: Cと  #4: (*A → B)","OK"]
["DとCとB","CとB","#0: (-Dと)  #2: CとB","#0: (-Dと)  #2: CとB","OK"]
["$B2と$A1","$B2と$A1","相違なし","相違なし","OK"]
["$B2と$A1","$C3と$A1","#0: $  #1: (*B2 → C3)  #3: と$A1","#0: $  #1: (*B2 → C3)  #3: と$A1","OK"]
["$B2と$A1","$C3と$B2","#4: $  #5: (*A1 → C3)  #3: と  #0: $B2","#4: $  #5: (*A1 → C3)  #3: と  #0: $B2","OK"]
["$C3と$A1","$B2と$A1","#0: $  #1: (*C3 → B2)  #3: と$A1","#0: $  #1: (*C3 → B2)  #3: と$A1","OK"]
["$C3と$A1","$C3と$A1","相違なし","相違なし","OK"]
["$C3と$A1","$C3と$B2","#0: $C3と$  #5: (*A1 → B2)","#0: $C3と$  #5: (*A1 → B2)","OK"]
["$C3と$B2","$B2と$A1","#0: $  #1: (-C3)  #5: B2  #3: と$  (+A1)","#0: $  #1: (-C3)  #5: B2  #3: と$  (+A1)","OK"]
["$C3と$B2","$C3と$A1","#0: $C3と$  #5: (*B2 → A1)","#0: $C3と$  #5: (*B2 → A1)","OK"]
["$C3と$B2","$C3と$B2","相違なし","相違なし","OK"]
["$C3と$B2と$A1","$C3と$B2と$A1","相違なし","相違なし","OK"]
["$C3と$B2と$A1","$D4と$B2と$A1","#0: $  #1: (*C3 → D4)  #3: と$B2と$A1","#0: $  #1: (*C3 → D4)  #3: と$B2と$A1","OK"]
["$C3と$B2と$A1","$D4と$C3と$A1","#8: $  (+D4)  #7: と  #0: $C3と$  #5: (-B2)  #9: A1","#8: $  (+D4)  #7: と  #0: $C3と$  #5: (-B2)  #9: A1","OK"]
["$C3と$B2と$A1","$D4と$C3と$B2","#8: $  #9: (*A1 → D4)  #7: と  #0: $C3と$B2","#8: $  #9: (*A1 → D4)  #7: と  #0: $C3と$B2","OK"]
["$D4と$B2と$A1","$C3と$B2と$A1","#0: $  #1: (*D4 → C3)  #3: と$B2と$A1","#0: $  #1: (*D4 → C3)  #3: と$B2と$A1","OK"]
["$D4と$B2と$A1","$D4と$B2と$A1","相違なし","相違なし","OK"]
["$D4と$B2と$A1","$D4と$C3と$A1","#0: $D4と$  #5: (*B2 → C3)  #7: と$A1","#0: $D4と$  #5: (*B2 → C3)  #7: と$A1","OK"]
["$D4と$B2と$A1","$D4と$C3と$B2","#0: $D4と$  (+C3)  #7: と$  #9: (-A1)  #5: B2","#0: $D4と$  (+C3)  #7: と$  #9: (-A1)  #5: B2",{"$f":"IF(AND(A67<>\"\",B67<>\"\",C67=D67),\"OK\",\"\")","v":"OK"}]
["$D4と$C3と$A1","$C3と$B2と$A1","#4: $C3と$  (+B2)  #3: と  #0: $  #1: (-D4)  #9: A1","#4: $C3と$  (+B2)  #3: と  #0: $  #1: (-D4)  #9: A1","OK"]
["$D4と$C3と$A1","$D4と$B2と$A1","#0: $D4と$  #5: (*C3 → B2)  #7: と$A1","#0: $D4と$  #5: (*C3 → B2)  #7: と$A1","OK"]
["$D4と$C3と$A1","$D4と$C3と$A1","相違なし","相違なし","OK"]
["$D4と$C3と$A1","$D4と$C3と$B2","#0: $D4と$C3と$  #9: (*A1 → B2)","#0: $D4と$C3と$  #9: (*A1 → B2)","OK"]
["$D4と$C3と$B2","$C3と$B2と$A1","#4: $C3と$B2  #3: と  #0: $  #1: (*D4 → A1)","#4: $C3と$B2  #3: と  #0: $  #1: (*D4 → A1)","OK"]
["$D4と$C3と$B2","$D4と$B2と$A1","#0: $D4と$  #5: (-C3)  #9: B2  #7: と$  (+A1)","#0: $D4と$  #5: (-C3)  #9: B2  #7: と$  (+A1)","OK"]
["$D4と$C3と$B2","$D4と$C3と$A1","#0: $D4と$C3と$  #9: (*B2 → A1)","#0: $D4と$C3と$  #9: (*B2 → A1)","OK"]
["$D4と$C3と$B2","$D4と$C3と$B2","相違なし","相違なし","OK"]
["$B2と$A1","$C3と$B2と$A1","(+$C3と)  #0: $B2と$A1","(+$C3と)  #0: $B2と$A1","OK"]
["$B2と$A1","$D4と$B2と$A1","(+$D4と)  #0: $B2と$A1","(+$D4と)  #0: $B2と$A1","OK"]
["$B2と$A1","$D4と$C3と$A1","#0: $  #1: (*B2 → D4)  #3: と$  (+C3と$)  #5: A1","#0: $  #1: (*B2 → D4)  #3: と$  (+C3と$)  #5: A1","OK"]
["$B2と$A1","$D4と$C3と$B2","(+$D4)  #3: と$  #5: (*A1 → C3と)  #0: $B2","(+$D4)  #3: と$  #5: (*A1 → C3と)  #0: $B2","OK"]
["$C3と$A1","$C3と$B2と$A1","#0: $C3と$  (+B2と$)  #5: A1","#0: $C3と$  (+B2と$)  #5: A1","OK"]
["$C3と$A1","$D4と$B2と$A1","#0: $  #1: (*C3 → D4)  #3: と$  (+B2と$)  #5: A1","#0: $  #1: (*C3 → D4)  #3: と$  (+B2と$)  #5: A1","OK"]
["$C3と$A1","$D4と$C3と$A1","(+$D4と)  #0: $C3と$A1","(+$D4と)  #0: $C3と$A1","OK"]
["$C3と$A1","$D4と$C3と$B2","(+$D4と)  #0: $C3と$  #5: (*A1 → B2)","(+$D4と)  #0: $C3と$  #5: (*A1 → B2)","OK"]
["$C3と$B2","$C3と$B2と$A1","#0: $C3と$B2  (+と$A1)","#0: $C3と$B2  (+と$A1)","OK"]
["$C3と$B2","$D4と$B2と$A1","#0: $  #1: (*C3 → D4)  #3: と$B2  (+と$A1)","#0: $  #1: (*C3 → D4)  #3: と$B2  (+と$A1)","OK"]
["$C3と$B2","$D4と$C3と$A1","(+$D4と)  #0: $C3と$  #5: (*B2 → A1)","(+$D4と)  #0: $C3と$  #5: (*B2 → A1)","OK"]
["$C3と$B2","$D4と$C3と$B2","(+$D4と)  #0: $C3と$B2","(+$D4と)  #0: $C3と$B2","OK"]
["$C3と$B2と$A1","$B2と$A1","#0: (-$C3と)  #4: $B2と$A1","#0: (-$C3と)  #4: $B2と$A1","OK"]
["$D4と$B2と$A1","$B2と$A1","#0: (-$D4と)  #4: $B2と$A1","#0: (-$D4と)  #4: $B2と$A1","OK"]
["$D4と$C3と$A1","$B2と$A1","#0: $  #1: (*D4と$C3 → B2)  #7: と$A1","#0: $  #1: (*D4と$C3 → B2)  #7: と$A1","OK"]
["$D4と$C3と$B2","$B2と$A1","#0: $  #1: (-D4と$C3)  #9: B2  #7: と$  (+A1)","#0: $  #1: (-D4と$C3)  #9: B2  #7: と$  (+A1)","OK"]
["$C3と$B2と$A1","$C3と$A1","#0: $C3と$  #5: (-B2と$)  #9: A1","#0: $C3と$  #5: (-B2と$)  #9: A1","OK"]
["$D4と$B2と$A1","$C3と$A1","#0: $  #1: (*D4と$B2 → C3)  #7: と$A1","#0: $  #1: (*D4と$B2 → C3)  #7: と$A1","OK"]
["$D4と$C3と$A1","$C3と$A1","#0: (-$D4と)  #4: $C3と$A1","#0: (-$D4と)  #4: $C3と$A1","OK"]
["$D4と$C3と$B2","$C3と$A1","#0: (-$D4と)  #4: $C3と$  #9: (*B2 → A1)","#0: (-$D4と)  #4: $C3と$  #9: (*B2 → A1)","OK"]
["$C3と$B2と$A1","$C3と$B2","#0: $C3と$B2  #7: (-と$A1)","#0: $C3と$B2  #7: (-と$A1)","OK"]
["$D4と$B2と$A1","$C3と$B2","#0: $  #1: (*D4 → C3)  #3: と$B2  #7: (-と$A1)","#0: $  #1: (*D4 → C3)  #3: と$B2  #7: (-と$A1)","OK"]
["$D4と$C3と$A1","$C3と$B2","#0: (-$D4と)  #4: $C3と$  #9: (*A1 → B2)","#0: (-$D4と)  #4: $C3と$  #9: (*A1 → B2)","OK"]
["$D4と$C3と$B2","$C3と$B2","#0: (-$D4と)  #4: $C3と$B2","#0: (-$D4と)  #4: $C3と$B2","OK"]
["BとA","DとCとBとA","(+DとCと)  #0: BとA","(+DとCと)  #0: BとA","OK"]
["BとA","EとCとBとA","(+EとCと)  #0: BとA","(+EとCと)  #0: BとA","OK"]
["BとA","EとDとBとA","(+EとDと)  #0: BとA","(+EとDと)  #0: BとA","OK"]
["BとA","EとDとCとA","#0: (*B → EとDとC)  #1: とA","#0: (*B → EとDとC)  #1: とA","OK"]
["BとA","EとDとCとB","(+E)  #1: と  #2: (*A → DとCと)  #0: B","(+E)  #1: と  #2: (*A → DとCと)  #0: B","OK"]
["CとA","DとCとBとA","(+Dと)  #0: Cと  (+Bと)  #2: A","(+Dと)  #0: Cと  (+Bと)  #2: A","OK"]
["CとA","EとCとBとA","(+Eと)  #0: Cと  (+Bと)  #2: A","(+Eと)  #0: Cと  (+Bと)  #2: A","OK"]
["CとA","EとDとBとA","#0: (*C → EとDとB)  #1: とA","#0: (*C → EとDとB)  #1: とA","OK"]
["CとA","EとDとCとA","(+EとDと)  #0: CとA","(+EとDと)  #0: CとA","OK"]
["CとA","EとDとCとB","(+EとDと)  #0: Cと  #2: (*A → B)","(+EとDと)  #0: Cと  #2: (*A → B)","OK"]
["CとB","DとCとBとA","(+Dと)  #0: CとB  (+とA)","(+Dと)  #0: CとB  (+とA)","OK"]
["CとB","EとCとBとA","(+Eと)  #0: CとB  (+とA)","(+Eと)  #0: CとB  (+とA)","OK"]
["CとB","EとDとBとA","#0: (*C → EとD)  #1: とB  (+とA)","#0: (*C → EとD)  #1: とB  (+とA)","OK"]
["CとB","EとDとCとA","(+EとDと)  #0: Cと  #2: (*B → A)","(+EとDと)  #0: Cと  #2: (*B → A)","OK"]
["CとB","EとDとCとB","(+EとDと)  #0: CとB","(+EとDと)  #0: CとB","OK"]
["DとCとBとA","BとA","#0: (-DとCと)  #4: BとA","#0: (-DとCと)  #4: BとA","OK"]
["EとCとBとA","BとA","#0: (-EとCと)  #4: BとA","#0: (-EとCと)  #4: BとA","OK"]
["EとDとBとA","BとA","#0: (-EとDと)  #4: BとA","#0: (-EとDと)  #4: BとA","OK"]
["EとDとCとA","BとA","#0: (*EとDとC → B)  #5: とA","#0: (*EとDとC → B)  #5: とA","OK"]
["EとDとCとB","BとA","#0: (-E)  #6: B  #1: と  #2: (-DとCと)  (+A)","#0: (-E)  #6: B  #1: と  #2: (-DとCと)  (+A)","OK"]
["DとCとBとA","CとA","#0: (-Dと)  #2: Cと  #4: (-Bと)  #6: A","#0: (-Dと)  #2: Cと  #4: (-Bと)  #6: A","OK"]
["EとCとBとA","CとA","#0: (-Eと)  #2: Cと  #4: (-Bと)  #6: A","#0: (-Eと)  #2: Cと  #4: (-Bと)  #6: A","OK"]
["EとDとBとA","CとA","#0: (*EとDとB → C)  #5: とA","#0: (*EとDとB → C)  #5: とA","OK"]
["EとDとCとA","CとA","#0: (-EとDと)  #4: CとA","#0: (-EとDと)  #4: CとA","OK"]
["EとDとCとB","CとA","#0: (-EとDと)  #4: Cと  #6: (*B → A)","#0: (-EとDと)  #4: Cと  #6: (*B → A)","OK"]
["DとCとBとA","CとB","#0: (-Dと)  #2: CとB  #5: (-とA)","#0: (-Dと)  #2: CとB  #5: (-とA)","OK"]
["EとCとBとA","CとB","#0: (-Eと)  #2: CとB  #5: (-とA)","#0: (-Eと)  #2: CとB  #5: (-とA)","OK"]
["EとDとBとA","CとB","#0: (*EとD → C)  #3: とB  #5: (-とA)","#0: (*EとD → C)  #3: とB  #5: (-とA)","OK"]
["EとDとCとA","CとB","#0: (-EとDと)  #4: Cと  #6: (*A → B)","#0: (-EとDと)  #4: Cと  #6: (*A → B)","OK"]
["EとDとCとB","CとB","#0: (-EとDと)  #4: CとB","#0: (-EとDと)  #4: CとB","OK"]
["CとBとA","DとCとBとA","(+Dと)  #0: CとBとA","(+Dと)  #0: CとBとA","OK"]
["CとBとA","EとCとBとA","(+Eと)  #0: CとBとA","(+Eと)  #0: CとBとA",{"$f":"IF(AND(A131<>\"\",B131<>\"\",C131=D131),\"OK\",\"\")","v":"OK"}]
["CとBとA","EとDとBとA","#0: (*C → EとD)  #1: とBとA","#0: (*C → EとD)  #1: とBとA","OK"]
["CとBとA","EとDとCとA","(+E)  #3: と  (+Dと)  #0: Cと  #2: (-B)  #4: A","(+E)  #3: と  (+Dと)  #0: Cと  #2: (-B)  #4: A","OK"]
["CとBとA","EとDとCとB","(+E)  #3: と  #4: (*A → Dと)  #0: CとB","(+E)  #3: と  #4: (*A → Dと)  #0: CとB","OK"]
["DとBとA","DとCとBとA","#0: Dと  (+Cと)  #2: BとA","#0: Dと  (+Cと)  #2: BとA","OK"]
["DとBとA","EとCとBとA","#0: (*D → EとC)  #1: とBとA","#0: (*D → EとC)  #1: とBとA","OK"]
["DとBとA","EとDとBとA","(+Eと)  #0: DとBとA","(+Eと)  #0: DとBとA","OK"]
["DとBとA","EとDとCとA","(+Eと)  #0: Dと  #2: (*B → C)  #3: とA","(+Eと)  #0: Dと  #2: (*B → C)  #3: とA","OK"]
["DとBとA","EとDとCとB","(+E)  #3: と  #4: (-A)  #0: Dと  (+Cと)  #2: B","(+E)  #3: と  #4: (-A)  #0: Dと  (+Cと)  #2: B","OK"]
["DとCとA","DとCとBとA","#0: DとCと  (+Bと)  #4: A","#0: DとCと  (+Bと)  #4: A","OK"]
["DとCとA","EとCとBとA","#0: (*D → E)  #1: とCと  (+Bと)  #4: A","#0: (*D → E)  #1: とCと  (+Bと)  #4: A","OK"]
["DとCとA","EとDとBとA","(+Eと)  #0: Dと  #2: (*C → B)  #3: とA","(+Eと)  #0: Dと  #2: (*C → B)  #3: とA","OK"]
["DとCとA","EとDとCとA","(+Eと)  #0: DとCとA","(+Eと)  #0: DとCとA","OK"]
["DとCとA","EとDとCとB","(+Eと)  #0: DとCと  #4: (*A → B)","(+Eと)  #0: DとCと  #4: (*A → B)","OK"]
["DとCとB","DとCとBとA","#0: DとCとB  (+とA)","#0: DとCとB  (+とA)","OK"]
["DとCとB","EとCとBとA","#0: (*D → E)  #1: とCとB  (+とA)","#0: (*D → E)  #1: とCとB  (+とA)","OK"]
["DとCとB","EとDとBとA","(+E)  #3: と  #0: Dと  #2: (-C)  #4: B  (+とA)","(+E)  #3: と  #0: Dと  #2: (-C)  #4: B  (+とA)","OK"]
["DとCとB","EとDとCとA","(+Eと)  #0: DとCと  #4: (*B → A)","(+Eと)  #0: DとCと  #4: (*B → A)","OK"]
["DとCとB","EとDとCとB","(+Eと)  #0: DとCとB","(+Eと)  #0: DとCとB","OK"]
["DとCとBとA","CとBとA","#0: (-Dと)  #2: CとBとA","#0: (-Dと)  #2: CとBとA","OK"]
["EとCとBとA","CとBとA","#0: (-Eと)  #2: CとBとA","#0: (-Eと)  #2: CとBとA","OK"]
["EとDとBとA","CとBとA","#0: (*EとD → C)  #3: とBとA","#0: (*EとD → C)  #3: とBとA","OK"]
["EとDとCとA","CとBとA","#0: (-E)  #4: Cと  (+B)  #1: と  #2: (-Dと)  #6: A","#0: (-E)  #4: Cと  (+B)  #1: と  #2: (-Dと)  #6: A","OK"]
["EとDとCとB","CとBとA","#0: (-E)  #4: CとB  #1: と  #2: (-Dと)  (+A)","#0: (-E)  #4: CとB  #1: と  #2: (-Dと)  (+A)","OK"]
["DとCとBとA","DとBとA","#0: Dと  #2: (-Cと)  #4: BとA","#0: Dと  #2: (-Cと)  #4: BとA","OK"]
["EとCとBとA","DとBとA","#0: (*EとC → D)  #3: とBとA","#0: (*EとC → D)  #3: とBとA","OK"]
["EとDとBとA","DとBとA","#0: (-Eと)  #2: DとBとA","#0: (-Eと)  #2: DとBとA","OK"]
["EとDとCとA","DとBとA","#0: (-Eと)  #2: Dと  #4: (*C → B)  #5: とA","#0: (-Eと)  #2: Dと  #4: (*C → B)  #5: とA","OK"]
["EとDとCとB","DとBとA","#0: (-E)  #2: Dと  #4: (-Cと)  #6: B  #1: と  (+A)","#0: (-E)  #2: Dと  #4: (-Cと)  #6: B  #1: と  (+A)","OK"]
["DとCとBとA","DとCとA","#0: DとCと  #4: (-Bと)  #6: A","#0: DとCと  #4: (-Bと)  #6: A","OK"]
["EとCとBとA","DとCとA","#0: (*E → D)  #1: とCと  #4: (-Bと)  #6: A","#0: (*E → D)  #1: とCと  #4: (-Bと)  #6: A","OK"]
["EとDとBとA","DとCとA","#0: (-Eと)  #2: Dと  #4: (*B → C)  #5: とA","#0: (-Eと)  #2: Dと  #4: (*B → C)  #5: とA","OK"]
["EとDとCとA","DとCとA","#0: (-Eと)  #2: DとCとA","#0: (-Eと)  #2: DとCとA","OK"]
["EとDとCとB","DとCとA","#0: (-Eと)  #2: DとCと  #6: (*B → A)","#0: (-Eと)  #2: DとCと  #6: (*B → A)","OK"]
["DとCとBとA","DとCとB","#0: DとCとB  #5: (-とA)","#0: DとCとB  #5: (-とA)","OK"]
["EとCとBとA","DとCとB","#0: (*E → D)  #1: とCとB  #5: (-とA)","#0: (*E → D)  #1: とCとB  #5: (-とA)","OK"]
["EとDとBとA","DとCとB","#0: (-E)  #2: Dと  (+C)  #1: と  #4: B  #5: (-とA)","#0: (-E)  #2: Dと  (+C)  #1: と  #4: B  #5: (-とA)","OK"]
["EとDとCとA","DとCとB","#0: (-Eと)  #2: DとCと  #6: (*A → B)","#0: (-Eと)  #2: DとCと  #6: (*A → B)","OK"]
["EとDとCとB","DとCとB","#0: (-Eと)  #2: DとCとB","#0: (-Eと)  #2: DとCとB","OK"]

{"sheet":"Sentnece_Test","index":5,"n_rows":145,"n_cols":62,"rows_kept":145,"cut":false,"hidden":false,"merged":[[4,56,4,60],[4,61,4,65],[5,56,5,60],[5,61,5,65],[53,0,65,12],[53,13,65,25],[53,26,65,38],[53,39,65,51],[53,52,65,52],[40,26,52,38],[40,39,52,51],[40,52,52,52],[14,26,26,38],[27,26,39,38],[27,39,39,51],[27,52,39,52],[0,26,0,38],[0,39,0,51],[1,52,13,52],[14,39,26,51],[14,52,26,52],[1,39,13,51],[1,26,13,38],[40,0,52,12],[40,13,52,25],[14,0,26,12],[14,13,26,25],[0,0,0,12],[0,13,0,25],[1,0,13,12],[1,13,13,25],[27,0,39,12],[27,13,39,25],[66,0,78,12],[66,13,78,25],[66,26,78,38],[66,39,78,51],[66,52,78,52],[79,0,91,12],[92,0,104,12],[105,0,117,12],[118,0,130,12],[131,0,143,12],[79,13,91,25],[79,26,91,38],[79,39,91,51],[79,52,91,52],[92,13,104,25],[92,26,104,38],[92,39,104,51],[92,52,104,52],[105,13,117,25],[105,26,117,38],[105,39,117,51],[105,52,117,52],[118,13,130,25],[118,26,130,38],[118,39,130,51],[118,52,130,52],[131,13,143,25],[131,26,143,38],[131,39,143,51],[131,52,143,52],[144,0,156,12],[144,13,156,25],[144,26,156,38],[144,39,156,51],[144,52,156,52]]}
["文書A",null,null,null,null,null,null,null,null,null,null,null,null,"文書B",null,null,null,null,null,null,null,null,null,null,null,null,"DIFFの結果",null,null,null,null,null,null,null,null,null,null,null,null,"DIFF(正解)",null,null,null,null,null,null,null,null,null,null,null,null,"結果"]
["同じ物があります。違う物があります。同じ物があります。",null,null,null,null,null,null,null,null,null,null,null,null,"一部、違う物があります。",null,null,null,null,null,null,null,null,null,null,null,null,"#0: (*同じ物があります。 → 一部、)  #5: 違う物があります。  #10: (-同じ物があります。)",null,null,null,null,null,null,null,null,null,null,null,null,"#0: (*同じ物があります。 → 一部、)  #5: 違う物があります。  #10: (-同じ物があります。)",null,null,null,null,null,null,null,null,null,null,null,null,{"$f":"IF(AND(A2<>\"\",N2<>\"\",AA2=AN2),\"OK\",\"\")","v":"OK"}]
[]
[]
[null,null,null,null,null,null,null,null,null,null,null,null,null,null,null,null,null,null,null,null,null,null,null,null,null,null,null,null,null,null,null,null,null,null,null,null,null,null,null,null,null,null,null,null,null,null,null,null,null,null,null,null,null,null,null,null,"サンプル文書の数",null,null,null,null,"OKの数"]
[null,null,null,null,null,null,null,null,null,null,null,null,null,null,null,null,null,null,null,null,null,null,null,null,null,null,null,null,null,null,null,null,null,null,null,null,null,null,null,null,null,null,null,null,null,null,null,null,null,null,null,null,null,null,null,null,{"$f":"COUNTA(A:A)-1","v":9},null,null,null,null,{"$f":"COUNTIFS(BA:BA,\"OK\")","v":9}]
[]
[]
[]
[]
[]
[]
[]
[]
["私は、昨日、パソコンを起動した。",null,null,null,null,null,null,null,null,null,null,null,null,"あなたは、明後日、お弁当を持っていかなければならない。",null,null,null,null,null,null,null,null,null,null,null,null,"#0: (*私は → あなたは)  #2: 、  #3: (*昨日 → 明後日)  #4: 、  #5: (*パソコンを起動した → お弁当を持っていかなければならない)  #9: 。",null,null,null,null,null,null,null,null,null,null,null,null,"#0: (*私は → あなたは)  #2: 、  #3: (*昨日 → 明後日)  #4: 、  #5: (*パソコンを起動した → お弁当を持っていかなければならない)  #9: 。",null,null,null,null,null,null,null,null,null,null,null,null,{"$f":"IF(AND(A15<>\"\",N15<>\"\",AA15=AN15),\"OK\",\"\")","v":"OK"}]
[]
[]
[]
[]
[]
[]
[]
[]
[]
[]
[]
[]
["■箇条書きその1\n■箇条書きその2\n■箇条書きの順番を入れ替える。\n■記号を含んだ箇条書きが、正しく判定されるか?",null,null,null,null,null,null,null,null,null,null,null,null,"■箇条書きの順番を入れ替えた。\n■箇条書きその1を、その3に変更した。\n■記号を含んだ箇条書きが、正しく判定されるか?\n■箇条書きその2",null,null,null,null,null,null,null,null,null,null,null,null,"#10: ■箇条書きの順番を入れ替  #18: (*える → えた)  #19: 。\\n  #0: ■箇条書きその1  (+を、その3に変更した。)  #4: \\n  #21: ■記号を含んだ箇条書きが、正しく判定されるか?  (+\\n)  #5: ■箇条書きその2  #9: (-\\n)",null,null,null,null,null,null,null,null,null,null,null,null,"#10: ■箇条書きの順番を入れ替  #18: (*える → えた)  #19: 。\\n  #0: ■箇条書きその1  (+を、その3に変更した。)  #4: \\n  #21: ■記号を含んだ箇条書きが、正しく判定されるか?  (+\\n)  #5: ■箇条書きその2  #9: (-\\n)",null,null,null,null,null,null,null,null,null,null,null,null,{"$f":"IF(AND(A28<>\"\",N28<>\"\",AA28=AN28),\"OK\",\"\")","v":"OK"}]
[null,null,null,null,null,null,null,null,null,null,null,null,null,null,null,null,null,null,null,null,null,null,null,null,null,null,null,null,null,null,null,null,null,null,null,null,null,null,null,null,null,null,null,null,null,null,null,null,null,null,null,null,null,null,"v107の変更で最後の改行が、移動と判定されず"]
[null,null,null,null,null,null,null,null,null,null,null,null,null,null,null,null,null,null,null,null,null,null,null,null,null,null,null,null,null,null,null,null,null,null,null,null,null,null,null,null,null,null,null,null,null,null,null,null,null,null,null,null,null,null,"追加と削除と判定されるようになっている。"]
[]
[null,null,null,null,null,null,null,null,null,null,null,null,null,null,null,null,null,null,null,null,null,null,null,null,null,null,null,null,null,null,null,null,null,null,null,null,null,null,null,null,null,null,null,null,null,null,null,null,null,null,null,null,null,null,"v.107で改行を後方へ、検索しないように変更したためなのですが、"]
[null,null,null,null,null,null,null,null,null,null,null,null,null,null,null,null,null,null,null,null,null,null,null,null,null,null,null,null,null,null,null,null,null,null,null,null,null,null,null,null,null,null,null,null,null,null,null,null,null,null,null,null,null,null,"改行が一つずつ残った場合、Sameに引き当てる方が良いか？"]
[null,null,null,null,null,null,null,null,null,null,null,null,null,null,null,null,null,null,null,null,null,null,null,null,null,null,null,null,null,null,null,null,null,null,null,null,null,null,null,null,null,null,null,null,null,null,null,null,null,null,null,null,null,null,"→ 検討中"]
[]
[]
[]
[]
[]
[]
["私は、原材料AとBとCを混ぜ合わせた。それから、料理を作った。",null,null,null,null,null,null,null,null,null,null,null,null,"私は、原材料BとDをAとCに混ぜ合わせた。それから、料理を作った。",null,null,null,null,null,null,null,null,null,null,null,null,"#0: 私は、原材料  #6: Bと  (+D)  #9: を  #4: Aと  #8: C  (+に)  #10: 混ぜ合わせた。それから、料理を作った。",null,null,null,null,null,null,null,null,null,null,null,null,"#0: 私は、原材料  #6: Bと  (+D)  #9: を  #4: Aと  #8: C  (+に)  #10: 混ぜ合わせた。それから、料理を作った。",null,null,null,null,null,null,null,null,null,null,null,null,{"$f":"IF(AND(A41<>\"\",N41<>\"\",AA41=AN41),\"OK\",\"\")","v":"OK"}]
[]
[]
[]
[]
[]
[]
[]
[]
[]
[]
[]
[]
["素麺をパクっと一口、食べると、『うまい!』と思わず、口から声が出てしまいます。釜や鍋から湯気がモワモワと、立ち上っています。\n\nさてさて、そのお味の方は、\n☆☆☆\n星が三つなり。",null,null,null,null,null,null,null,null,null,null,null,null,"釜や鍋から湯気がモワモワと、立ち上っています。粒麺をパクっと二口、食べると、『おいしい!』と思わず、口から声が出てしまいます。\n\nさてさて、そのお味の方は、\n☆☆☆\n星が三つなり。",null,null,null,null,null,null,null,null,null,null,null,null,"#23: 釜や鍋から湯気がモワモワと、立ち上っています。  #37: (-\\n\\n)  #0: (*素麺 → 粒麺)  #1: をパクっと  #4: (*一口 → 二口)  #5: 、食べると、『  #9: (*うまい → おいしい)  #10: !』と思わず、口から声が出てしまいます。  (+\\n\\n)  #38: さてさて、そのお味の方は、\\n☆☆☆\\n星が三つなり。",null,null,null,null,null,null,null,null,null,null,null,null,"#23: 釜や鍋から湯気がモワモワと、立ち上っています。  #37: (-\\n\\n)  #0: (*素麺 → 粒麺)  #1: をパクっと  #4: (*一口 → 二口)  #5: 、食べると、『  #9: (*うまい → おいしい)  #10: !』と思わず、口から声が出てしまいます。  (+\\n\\n)  #38: さてさて、そのお味の方は、\\n☆☆☆\\n星が三つなり。",null,null,null,null,null,null,null,null,null,null,null,null,{"$f":"IF(AND(A54<>\"\",N54<>\"\",AA54=AN54),\"OK\",\"\")","v":"OK"}]
[]
[]
[]
[]
[]
[]
[]
[]
[]
[]
[]
[]
["湯気が、立ち上っている。湯気が釜から立ち上っている。湯気が、鍋から立ち上っている。",null,null,null,null,null,null,null,null,null,null,null,null,"立ち上っている。湯気が釜から立ち上っている。湯気が、鍋から立ち上っている。",null,null,null,null,null,null,null,null,null,null,null,null,"#0: (-湯気が、)  #3: 立ち上っている。湯気が釜から立ち上っている。湯気が、鍋から立ち上っている。",null,null,null,null,null,null,null,null,null,null,null,null,"#0: (-湯気が、)  #3: 立ち上っている。湯気が釜から立ち上っている。湯気が、鍋から立ち上っている。",null,null,null,null,null,null,null,null,null,null,null,null,{"$f":"IF(AND(A67<>\"\",N67<>\"\",AA67=AN67),\"OK\",\"\")","v":"OK"}]
[]
[]
[]
[]
[]
[]
[]
[]
[]
[]
[]
[]
["湯気が、立ち上っている。湯気が風呂から立ち上っている。湯気が釜から立ち上っている。湯気が、鍋から立ち上っている。",null,null,null,null,null,null,null,null,null,null,null,null,"立ち上っている。湯気が釜から立ち上っている。湯気が、鍋から立ち上っている。湯気が風呂から立ち上っている。",null,null,null,null,null,null,null,null,null,null,null,null,"#0: (-湯気が、)  #3: 立ち上っている。  #17: 湯気が釜から立ち上っている。湯気が、鍋から立ち上っている。  #8: 湯気が風呂から立ち上っている。",null,null,null,null,null,null,null,null,null,null,null,null,"#0: (-湯気が、)  #3: 立ち上っている。  #17: 湯気が釜から立ち上っている。湯気が、鍋から立ち上っている。  #8: 湯気が風呂から立ち上っている。",null,null,null,null,null,null,null,null,null,null,null,null,{"$f":"IF(AND(A80<>\"\",N80<>\"\",AA80=AN80),\"OK\",\"\")","v":"OK"}]
[]
[]
[]
[]
[]
[]
[]
[]
[]
[]
[]
[]
["　某TV局の、つり紀行番組。\n『中四国、釣って万歳!!』\n釣り師: 後醍醐 安教、杉本 元也、唐津麻 千里\n\n　ミナさんの、好きな魚は、さんま、イカ。それと、高級魚の平目。\n\n※ちなみに、後醍醐さんの好きなTV番組は、以外にも、金田一耕助シリーズの『八墓村』だそうです。",null,null,null,null,null,null,null,null,null,null,null,null,"　某TV局の、つり紀行番組。\n『中四国、釣って万歳!!』\n釣り師: 後醍醐 亜希、杉本 涼子、唐津麻 なつみ\n\n　ミナさんの、好きな魚は、さんま、イカ。それと、高級魚の平目。\n\n※ちなみに、後醍醐さんの好きなTV番組は、以外にも、金田一耕助シリーズの『犬神家の一族』だそうです。",null,null,null,null,null,null,null,null,null,null,null,null,"#0: 　某TV局の、つり紀行番組。\\n『中四国、釣って万歳!!』\\n釣り師: 後醍醐   #25: (*安教 → 亜希)  #26: 、杉本   #29: (*元也 → 涼子)  #30: 、唐津麻   #33: (*千里 → なつみ)  #34: \\n\\n　ミナさんの、好きな魚は、さんま、イカ。それと、高級魚の平目。\\n\\n※ちなみに、後醍醐さんの好きなTV番組は、以外にも、金田一耕助シリーズの『  #73: (*八墓村 → 犬神家の一族)  #74: 』だそうです。",null,null,null,null,null,null,null,null,null,null,null,null,"#0: 　某TV局の、つり紀行番組。\\n『中四国、釣って万歳!!』\\n釣り師: 後醍醐   #25: (*安教 → 亜希)  #26: 、杉本   #29: (*元也 → 涼子)  #30: 、唐津麻   #33: (*千里 → なつみ)  #34: \\n\\n　ミナさんの、好きな魚は、さんま、イカ。それと、高級魚の平目。\\n\\n※ちなみに、後醍醐さんの好きなTV番組は、以外にも、金田一耕助シリーズの『  #73: (*八墓村 → 犬神家の一族)  #74: 』だそうです。",null,null,null,null,null,null,null,null,null,null,null,null,"OK"]
[]
[]
[]
[]
[]
[]
[]
[]
[]
[]
[]
[]
["四国は、その昔、讃岐、伊予、阿波、土佐と呼ばれ、分けられていました。\n\n讃岐はうどん。伊予はミカン。阿波は踊り。土佐と言えば、闘犬でしょうか?\n\nお金と時間に、余裕があれば、四国にも行ってみたいものです。",null,null,null,null,null,null,null,null,null,null,null,null,"四国は、その昔、讃岐、伊予、阿波、土佐と呼ばれ、分けられていました。讃岐はうどん。伊予はミカン。阿波は踊り。土佐と言えば、闘犬でしょうか?\n\nお金と時間に、余裕があれば、四国にも行ってみたいものです。",null,null,null,null,null,null,null,null,null,null,null,null,"#0: 四国は、その昔、讃岐、伊予、阿波、土佐と呼ばれ、分けられていました。  #20: (-\\n\\n)  #21: 讃岐はうどん。伊予はミカン。阿波は踊り。土佐と言えば、闘犬でしょうか?\\n\\nお金と時間に、余裕があれば、四国にも行ってみたいものです。",null,null,null,null,null,null,null,null,null,null,null,null,"#0: 四国は、その昔、讃岐、伊予、阿波、土佐と呼ばれ、分けられていました。  #20: (-\\n\\n)  #21: 讃岐はうどん。伊予はミカン。阿波は踊り。土佐と言えば、闘犬でしょうか?\\n\\nお金と時間に、余裕があれば、四国にも行ってみたいものです。",null,null,null,null,null,null,null,null,null,null,null,null,"OK"]
[]
[]
[]
[]
[]
[]
[]
[]
[]
[]
[]
[]
[null,null,null,null,null,null,null,null,null,null,null,null,null,null,null,null,null,null,null,null,null,null,null,null,null,null,null,null,null,null,null,null,null,null,null,null,null,null,null,null,null,null,null,null,null,null,null,null,null,null,null,null,""]
[]
[]
[]
[]
[]
[]
[]
[]
[]
[]
[]
[]
[null,null,null,null,null,null,null,null,null,null,null,null,null,null,null,null,null,null,null,null,null,null,null,null,null,null,null,null,null,null,null,null,null,null,null,null,null,null,null,null,null,null,null,null,null,null,null,null,null,null,null,null,""]
[]
[]
[]
[]
[]
[]
[]
[]
[]
[]
[]
[]
[null,null,null,null,null,null,null,null,null,null,null,null,null,null,null,null,null,null,null,null,null,null,null,null,null,null,null,null,null,null,null,null,null,null,null,null,null,null,null,null,null,null,null,null,null,null,null,null,null,null,null,null,{"$f":"IF(AND(A145<>\"\",N145<>\"\",AA145=AN145),\"OK\",\"\")","v":""}]

{"sheet":"ABC_Data","index":6,"n_rows":5,"n_cols":3,"rows_kept":5,"cut":false,"hidden":false,"merged":[]}
["BとA","CとBとA","DとCとBとA"]
["CとA","DとBとA","EとCとBとA"]
["CとB","DとCとA","EとDとBとA"]
[null,"DとCとB","EとDとCとA"]
[null,null,"EとDとCとB"]